Workbook

Sheet Liste variables
A1: Liste des variables
A3: Variable | C3: Description | G3: Unités
A4: wopt | C4: Teneur en eau optimale | G4: %
A5: ρdmax | C5: Masse volumique sèche maximale | G5: kg/m³
A6: ρs (>5 mm) | C6: Masse volumique des grains > 5 mm | G6: kg/m³
A7: ρs (<5 mm) | C7: Masse volumique des grains < 5 mm | G7: kg/m³
A8: Abs (>5 mm) | C8: Absorption des grains > 5 mm | G8: %
A9: Abs (<5 mm) | C9: Absorption des grains < 5 mm | G9: %
A10: Classe PG | C10: Classe de performance du bitume
A11: Tair | C11: Température de l'air | G11: °C
A12: Poids | C12: Poids sur la plaque de chargement | G12: kN
A13: Rayon | C13: Rayon de la plaque de chargement | G13: mm
A14: Vitesse | C14: Vitesse de circulation des véhicules | G14: km/h
A15: Cu | C15: Coefficient d'uniformité
A16: %F | C16: Pourcentage de particules fines | G16: %
A17: ρs | C17: Masse volumique des grains combinés | G17: kg/m³
A18: abs | C18: Absorption des grains combinés | G18: %
A19: n | C19: Porosité | G19: %
A20: nf | C20: Porosité de la fraction fine | G20: %
A21: nc | C21: Porosité de la fraction grossière | G21: %
A22: wsat | C22: Teneur en eau saturée | G22: %
A23: c1s | C23: Paramètre du modèle linéaire (état saturé) | G23: MPa/kPa
A24: c2s | C24: Paramètre du modèle linéaire (état saturé) | G24: MPa
A25: Sr évalué | C25: Degré de saturation évalué | G25: %
A26: Mr | C26: Module réversible | G26: MPa
A27: Tenrobé (°C) | C27: Température dans l'enrobé | G27: °C
A28: Fréq. (hz) | C28: Fréquence de sollicitation de l'enrobé | G28: Hz
A29: δ | C29: Paramètre du modèle de Witczak (enrobé)
A30: α | C30: Paramètre du modèle de Witczak (enrobé)
A31: β | C31: Paramètre du modèle de Witczak (enrobé)
A32: Log fr | C32: Paramètre du modèle de Witczak (enrobé)
A33: γ | C33: Paramètre du modèle de Witczak (enrobé)
A34: a1 | C34: Paramètre du modèle de Witczak (enrobé)
A35: a2 | C35: Paramètre du modèle de Witczak (enrobé)
A36: Log at | C36: Paramètre du modèle de Witczak (enrobé)
A37: E | C37: Module | G37: MPa
A38: H | C38: Épaisseur | G38: mm
A39: μ | C39: Coefficient de Poisson
A40: θ | C40: Contrainte totale | G40: kPa

Sheet Paramètres - Données - Calculs
A1: i3CMr - Estimation du module réversible - MG20 | J1: Données à entrer | N1: Données calculées | S1: Mode d'emploi
A3: Granulométrie | C3: Données Proctor | F3: Paramètres d'entrée
A4: Diamètre | B4: Passant | C4: wopt | D4: 5 | E4: % | F4: Cu | G4: =Feuil3!$B$28/Feuil3!$D$28 -> 41.14057192
A5: (mm) | B5: (%) | C5: ρdmax | D5: 2100 | E5: kg/m³ | F5: %F | G5: =$B$18 -> 4.5 | H5: %
A6: 56 | B6: 100 | C6: Densité et absorption des grains | F6: ρdmax | G6: =$D$5 -> 2100 | H6: kg/m³
A7: 40 | B7: 100 | C7: ρs (>5 mm) | D7: 2650 | E7: kg/m³ | F7: ρs | G7: =((100-$B$12)+$B$12)/(((100-$B$12)/$D$7)+(($B$12)/$D$8)) -> 2673.517048 | H7: kg/m³
A8: 31.5 | B8: 100 | C8: ρs (<5 mm) | D8: 2700 | E8: kg/m³ | F8: abs | G8: =((100-$B$12)/100)*$D$9+($B$12/100)*$D$10 -> 0.7375 | H8: % | BU8: Succion
A9: 20 | B9: 95 | C9: Abs (>5 mm) | D9: 0.5 | E9: % | F9: n | G9: =(1-($D$5/$G$7))*100 -> 21.45178197 | H9: % | BU9: Pente S
A10: 14 | B10: 80.5 | C10: Abs (<5 mm) | D10: 1 | E10: % | F10: nf | G10: =(($G$9/100)/(($G$9/100)+(1-($G$9/100))*($G$5/100)))*100 -> 85.85365444 | H10: %
A11: 10 | B11: 67 | C11: Enrobé | F11: nc | G11: =(($G$9/100)+(1-($G$9/100))*($G$5/100))*100 -> 24.98645178 | H11: %
A12: 5 | B12: 47.5 | C12: Classe PG | D12: 58-34 | F12: wsat | G12: =(((1*($G$7/$D$5-1))/($G$7/1000))+$G$8/100)*100 -> 10.95263427 | H12: %
A13: 2.5 | B13: 37 | C13: Tair | D13: 26 | E13: °C | F13: Fondation
A14: 1.25 | B14: 28.5 | C14: Épaisseur | D14: 100 | E14: mm | F14: Épaisseur | G14: 250 | H14: mm
A15: 0.63 | B15: 20 | C15: Charge | F15: c1s | G15: =-6.259-0.508*($G$4/$G$10)+7.725*($D$5/$D$5)-0.107*$G$12+0.168*$D$4 -> 0.8906374872
A16: 0.315 | B16: 13 | C16: Poids | D16: 50 | E16: kN | F16: c2s | G16: =879.476+$G$9*(14.353+0.00557*$G$7)-0.557*$G$7-6.213*$G$11+0.253*$D$5-27.533*$G$12 -> 92.1737223 | H16: MPa | AA16: 0
A17: 0.16 | B17: 9 | C17: Rayon | D17: 150 | E17: mm | F17: Sr évalué | G17: 30 | H17: % | AA17: 0
A18: 0.08 | B18: 4.5 | C18: Vitesse | D18: 30 | E18: km/h | F18: Effet Sr | G18: Pente S | AA18: 0
A19: Calculs enrobé | E19: Contrainte - Fondation | AA19: 0
A20: Valeurs entrée - Modèle Witczak | E20: Prof. (mm) | F20: θ (kPa) | AA20: 0
A21: Tenrobé (°C) | B21: =Feuil3!$V$15 -> 34.01844532 | C21: Fréq. (hz) | D21: =Feuil3!$V$17 -> 16.66666446 | E21: =Feuil3!AA17 -> 25 | F21: =Feuil3!AG27 -> 502.6362173 | AA21: 0
A22: δ | B22: =Feuil3!$O$23 -> 0.215 | C22: γ | D22: =Feuil3!$R$23 -> -0.398 | E22: =Feuil3!AA18 -> 75 | F22: =Feuil3!AG28 -> 335.5468206 | AA22: 0
A23: α | B23: =Feuil3!$P$23 -> 4.29 | C23: a1 | D23: =Feuil3!$S$23 -> -0.146 | E23: =Feuil3!AA19 -> 125 | F23: =Feuil3!AG29 -> 239.3404927
A24: β | B24: =Feuil3!$Q$23 -> -1.32 | C24: a2 | D24: =Feuil3!$T$23 -> 0.000795 | E24: =Feuil3!AA20 -> 175 | F24: =Feuil3!AG30 -> 180.5827071
A25: Log fr | B25: =Feuil3!$V$19 -> -1.826220181 | C25: Log at | D25: =Feuil3!$V$21 -> -3.048068873 | E25: =Feuil3!AA21 -> 225 | F25: =Feuil3!AG31 -> 142.834004
A27: Durée de vie en fatigue estimée (MÉCAS) | F27: =Feuil3!$AA$50 -> 5.860397262
F29: H (mm) | G29: E (Mpa) | H29: μ
E30: EB | F30: =$D$14 -> 100 | G30: =Feuil3!$O$25 -> 950.9327992 | H30: =Feuil3!$O$47 -> 0.35
G32: =Feuil3!$AC$12 -> 337.0923619
E33: MG20 | F33: =$G$14 -> 250 | H33: 0.35
K34: Autre information (MPa) : | L34: Mr ⅓ couche = | M34: =Feuil3!AJ6 -> 413.1743048 | N34: Mr moy. = | O34: =AVERAGE(Feuil3!AH26:AH32) -> 394.5115339 | P34: Écart-T. = | Q34: =STDEV(Feuil3!AH26:AH32) -> 164.7590855 | R34: Convergence = | S34: =Feuil3!$AI$33 -> 0.0001478331415

Sheet Feuil3 (hidden)
A1: Succion matricielle (Doucet et Doré 2004) | AN1: -35
A2: Pente S (Bilodeau 2009) | AN2: =AN1+1 -> -34
AN3: =AN2+1 -> -33
AN4: -32
AN5: -31
A6: Choix Methode effet saturation | AI6: Mr ⅓ couche = | AJ6: =AM23 -> 413.1743048 | AK6: MPa | AN6: -30
A7: ='Paramètres - Données - Calculs'!$G$18 -> Pente S | AI7: Mr ½ couche = | AJ7: =AF19 -> 337.0927041 | AK7: MPa | AN7: -29
F8: Calculs S | AI8: Mr moyen = | AJ8: =AVERAGE(AF16:AF22) -> 394.5115339 | AK8: MPa | AN8: -28
K9: Sr d'évaluation | AI9: Écart-Type Mr = | AJ9: =STDEV(AF16:AF22) -> 164.7590855 | AK9: MPa | AN9: -27
I10: Sropt | K10: Sr= | L10: w_eval | X10: rh Fond | AB10: H (mm) | AC10: Mr | AD10: μ | AN10: -26
I11: =('Paramètres - Données - Calculs'!$D$4-'Paramètres - Données - Calculs'!$G$8)*('Paramètres - Données - Calculs'!$G$7/1000)/('Paramètres - Données - Calculs'!$G$7/'Paramètres - Données - Calculs'!$D$5-1) -> 41.72730271 | J11: 20 | K11: ='Paramètres - Données - Calculs'!$G$17 -> 30 | L11: =($K$11*('Paramètres - Données - Calculs'!$G$9/100))/((1-('Paramètres - Données - Calculs'!$G$9/100))*('Paramètres - Données - Calculs'!$G$7/1000))+'Paramètres - Données - Calculs'!$G$8 -> 3.802040282 | X11: ='Paramètres - Données - Calculs'!$D$5*(1+($L$11/100)) -> 2179.842846 | AA11: EB | AB11: ='Paramètres - Données - Calculs'!$D$14 -> 100 | AC11: =$O$25 -> 950.9327992 | AD11: ='Paramètres - Données - Calculs'!$H$30 -> 0.35 | AI11: Mr=f(prof.) à Sr évalué | AN11: -25
A12: Calculs Cu | F12: S | G12: Vecteur Contrainte totale | H12: Mr sat | I12: Mropt | J12: Mr20 | K12: Mr Utilisateur | N12: Enrobés Bitumineux | AA12: F | AB12: ='Paramètres - Données - Calculs'!$F$33 -> 250 | AC12: =AC19 -> 337.0923619 | AD12: ='Paramètres - Données - Calculs'!$H$33 -> 0.35 | AN12: -24
F13: =(0.00003*G13+0.0206)*('Paramètres - Données - Calculs'!$G$10-113.636)+0.31818 -> -0.3374833551 | G13: 100 | H13: ='Paramètres - Données - Calculs'!$G$15*G13+'Paramètres - Données - Calculs'!$G$16 -> 181.237471 | I13: =IF($A$7="Succion",$H13+((-8700)*($E$38)-17000)/1000,$H13+$F13*(I$11-100)) -> 200.9035364 | J13: =IF($A$7="Succion",$H13+((-8700)*($E$36)-17000)/1000,$H13+$F13*(J$11-100)) -> 208.2361394 | K13: =IF($A$7="Succion",$H13+((-8700)*($E$39)-17000)/1000,$H13+$F13*(K$11-100)) -> 204.8613059 | AI13: Module dynamique EB = | AJ13: =O25 -> 950.9327992 | AK13: MPa | AN13: -23
F14: =(0.00003*G14+0.0206)*('Paramètres - Données - Calculs'!$G$10-113.636)+0.31818 -> -0.3791568735 | G14: 150 | H14: ='Paramètres - Données - Calculs'!$G$15*G14+'Paramètres - Données - Calculs'!$G$16 -> 225.7693454 | I14: 247.8638391 | J14: 256.1018953 | K14: 252.3103265 | N14: PG | O14: δ | P14: α | Q14: β | R14: γ | S14: a1 | T14: a2 | V14: T enrobé | X14: Vitesse | AI14: Vie en fatigue estimée | AJ14: =Feuil3!AA50 -> 5.860397262 | AK14: MÉCAS | AN14: -22
A15: =IF(('Paramètres - Données - Calculs'!B6>=60)*AND('Paramètres - Données - Calculs'!B7<60),1,0) -> 0 | B15: =IF(A15=1,(10^(((60-'Paramètres - Données - Calculs'!B7)/('Paramètres - Données - Calculs'!B6-'Paramètres - Données - Calculs'!B7))*(LOG('Paramètres - Données - Calculs'!A6/'Paramètres - Données - Calculs'!A7))+LOG('Paramètres - Données - Calculs'!A7))),0) -> 0 | C15: =IF(('Paramètres - Données - Calculs'!B6>=10)*AND('Paramètres - Données - Calculs'!B7<10),1,0) -> 0 | D15: =IF(C15=1,(10^(((10-'Paramètres - Données - Calculs'!B7)/('Paramètres - Données - Calculs'!B6-'Paramètres - Données - Calculs'!B7))*(LOG('Paramètres - Données - Calculs'!A6/'Paramètres - Données - Calculs'!A7))+LOG('Paramètres - Données - Calculs'!A7))),0) -> 0 | F15: =(0.00003*G15+0.0206)*('Paramètres - Données - Calculs'!$G$10-113.636)+0.31818 -> -0.4208303918 | G15: 200 | H15: ='Paramètres - Données - Calculs'!$G$15*G15+'Paramètres - Données - Calculs'!$G$16 -> 270.3012197 | I15: 294.8241418 | J15: 303.9676511 | K15: 299.7593472 | N15: 58-28 | O15: -0.422 | P15: 4.97 | Q15: -1.76 | R15: -0.422 | S15: -0.149 | T15: 0.000646 | V15: =(($V$32*(1+1/($X$32/3+4))-34/($X$32/3+4)+6)-32)*5/9 -> 34.01844532 | X15: ='Paramètres - Données - Calculs'!$D$18 -> 30 | Y15: km/h | AA15: Profondeur ds F | AC15: Mr départ | AN15: -21
A16: =IF(('Paramètres - Données - Calculs'!B7>=60)*AND('Paramètres - Données - Calculs'!B8<60),1,0) -> 0 | B16: =IF(A16=1,(10^(((60-'Paramètres - Données - Calculs'!B8)/('Paramètres - Données - Calculs'!B7-'Paramètres - Données - Calculs'!B8))*(LOG('Paramètres - Données - Calculs'!A7/'Paramètres - Données - Calculs'!A8))+LOG('Paramètres - Données - Calculs'!A8))),0) -> 0 | C16: =IF(('Paramètres - Données - Calculs'!B7>=10)*AND('Paramètres - Données - Calculs'!B8<10),1,0) -> 0 | D16: =IF(C16=1,(10^(((10-'Paramètres - Données - Calculs'!B8)/('Paramètres - Données - Calculs'!B7-'Paramètres - Données - Calculs'!B8))*(LOG('Paramètres - Données - Calculs'!A7/'Paramètres - Données - Calculs'!A8))+LOG('Paramètres - Données - Calculs'!A8))),0) -> 0 | F16: =(0.00003*G16+0.0206)*('Paramètres - Données - Calculs'!$G$10-113.636)+0.31818 -> -0.4625039101 | G16: 250 | H16: ='Paramètres - Données - Calculs'!$G$15*G16+'Paramètres - Données - Calculs'!$G$16 -> 314.8330941 | I16: 341.7844445 | J16: 351.8334069 | K16: 347.2083678 | N16: 58-34 | O16: 0.215 | P16: 4.29 | Q16: -1.32 | R16: -0.398 | S16: -0.146 | T16: 0.000795 | V16: F enrobé | X16: =1000*1000*$X$15/60/60 -> 8333.333333 | Y16: mm/s | AA16: =AA26 -> 12.5 | AC16: 643.6748441 | AF16: =AH26 -> 643.6749524 | AG16: =AA16 -> 12.5 | AI16: =AB12 -> 250 | AK16: =IF(($AI$17>AG16)*AND($AI$17<AG17),1,"") ->  | AL16: =IF(AK16=1,((AF17-AF16)/(AG17-AG16)),"") ->  | AM16: =IF(AK16=1,(AF16+($AI$17-AG16)*AL16),"") ->  | AN16: -20
A17: =IF(('Paramètres - Données - Calculs'!B8>=60)*AND('Paramètres - Données - Calculs'!B9<60),1,0) -> 0 | B17: =IF(A17=1,(10^(((60-'Paramètres - Données - Calculs'!B9)/('Paramètres - Données - Calculs'!B8-'Paramètres - Données - Calculs'!B9))*(LOG('Paramètres - Données - Calculs'!A8/'Paramètres - Données - Calculs'!A9))+LOG('Paramètres - Données - Calculs'!A9))),0) -> 0 | C17: =IF(('Paramètres - Données - Calculs'!B8>=10)*AND('Paramètres - Données - Calculs'!B9<10),1,0) -> 0 | D17: =IF(C17=1,(10^(((10-'Paramètres - Données - Calculs'!B9)/('Paramètres - Données - Calculs'!B8-'Paramètres - Données - Calculs'!B9))*(LOG('Paramètres - Données - Calculs'!A8/'Paramètres - Données - Calculs'!A9))+LOG('Paramètres - Données - Calculs'!A9))),0) -> 0 | F17: =(0.00003*G17+0.0206)*('Paramètres - Données - Calculs'!$G$10-113.636)+0.31818 -> -0.5041774285 | G17: 300 | H17: ='Paramètres - Données - Calculs'!$G$15*G17+'Paramètres - Données - Calculs'!$G$16 -> 359.3649685 | I17: 388.7447471 | J17: 399.6991627 | K17: 394.6573885 | N17: 64-28 | O17: -0.072 | P17: 4.63 | Q17: -1.68 | R17: -0.324 | S17: -0.151 | T17: 0.000688 | V17: =1/$X$29 -> 16.66666446 | X17: =$X$15*0.62137111 -> 18.6411333 | Y17: mph | AA17: =$AB$12/5/2 -> 25 | AC17: 586.9550769 | AF17: 586.9551897 | AG17: =$AB$12/5/2 -> 25 | AI17: =AI16/3 -> 83.33333333 | AK17: =IF(($AI$17>AG17)*AND($AI$17<AG18),1,"") ->  | AL17: =IF(AK17=1,((AF18-AF17)/(AG18-AG17)),"") ->  | AM17: =IF(AK17=1,(AF17+($AI$17-AG17)*AL17),"") ->  | AN17: -19
A18: =IF(('Paramètres - Données - Calculs'!B9>=60)*AND('Paramètres - Données - Calculs'!B10<60),1,0) -> 0 | B18: =IF(A18=1,(10^(((60-'Paramètres - Données - Calculs'!B10)/('Paramètres - Données - Calculs'!B9-'Paramètres - Données - Calculs'!B10))*(LOG('Paramètres - Données - Calculs'!A9/'Paramètres - Données - Calculs'!A10))+LOG('Paramètres - Données - Calculs'!A10))),0) -> 0 | C18: =IF(('Paramètres - Données - Calculs'!B9>=10)*AND('Paramètres - Données - Calculs'!B10<10),1,0) -> 0 | D18: =IF(C18=1,(10^(((10-'Paramètres - Données - Calculs'!B10)/('Paramètres - Données - Calculs'!B9-'Paramètres - Données - Calculs'!B10))*(LOG('Paramètres - Données - Calculs'!A9/'Paramètres - Données - Calculs'!A10))+LOG('Paramètres - Données - Calculs'!A10))),0) -> 0 | F18: =(0.00003*G18+0.0206)*('Paramètres - Données - Calculs'!$G$10-113.636)+0.31818 -> -0.5458509468 | G18: 350 | H18: ='Paramètres - Données - Calculs'!$G$15*G18+'Paramètres - Données - Calculs'!$G$16 -> 403.8968428 | I18: 435.7050498 | J18: 447.5649186 | K18: 442.1064091 | N18: 64-34 | O18: 0.636 | P18: 3.9 | Q18: -1.38 | R18: -0.369 | S18: -0.147 | T18: 0.000656 | V18: Log fr | AA18: =AA17+$AB$12/5 -> 75 | AC18: 428.3905642 | AF18: 428.3906249 | AG18: =AG17+$AB$12/5 -> 75 | AK18: 1 | AL18: -1.825958416 | AM18: 413.1743048 | AN18: -18
A19: =IF(('Paramètres - Données - Calculs'!B10>=60)*AND('Paramètres - Données - Calculs'!B11<60),1,0) -> 0 | B19: =IF(A19=1,(10^(((60-'Paramètres - Données - Calculs'!B11)/('Paramètres - Données - Calculs'!B10-'Paramètres - Données - Calculs'!B11))*(LOG('Paramètres - Données - Calculs'!A10/'Paramètres - Données - Calculs'!A11))+LOG('Paramètres - Données - Calculs'!A11))),0) -> 0 | C19: =IF(('Paramètres - Données - Calculs'!B10>=10)*AND('Paramètres - Données - Calculs'!B11<10),1,0) -> 0 | D19: =IF(C19=1,(10^(((10-'Paramètres - Données - Calculs'!B11)/('Paramètres - Données - Calculs'!B10-'Paramètres - Données - Calculs'!B11))*(LOG('Paramètres - Données - Calculs'!A10/'Paramètres - Données - Calculs'!A11))+LOG('Paramètres - Données - Calculs'!A11))),0) -> 0 | F19: =(0.00003*G19+0.0206)*('Paramètres - Données - Calculs'!$G$10-113.636)+0.31818 -> -0.5875244651 | G19: 400 | H19: ='Paramètres - Données - Calculs'!$G$15*G19+'Paramètres - Données - Calculs'!$G$16 -> 448.4287172 | I19: 482.6653525 | J19: 495.4306744 | K19: 489.5554297 | N19: 70-28 | O19: -0.22 | P19: 4.77 | Q19: -1.76 | R19: -0.283 | S19: -0.158 | T19: 0.000594 | V19: =LOG($V$17)+$V$21 -> -1.826220181 | AA19: =AA18+$AB$12/5 -> 125 | AC19: 337.0923619 | AF19: 337.0927041 | AG19: =AG18+$AB$12/5 -> 125 | AN19: -17
A20: =IF(('Paramètres - Données - Calculs'!B11>=60)*AND('Paramètres - Données - Calculs'!B12<60),1,0) -> 1 | B20: =IF(A20=1,(10^(((60-'Paramètres - Données - Calculs'!B12)/('Paramètres - Données - Calculs'!B11-'Paramètres - Données - Calculs'!B12))*(LOG('Paramètres - Données - Calculs'!A11/'Paramètres - Données - Calculs'!A12))+LOG('Paramètres - Données - Calculs'!A12))),0) -> 7.797187004 | C20: =IF(('Paramètres - Données - Calculs'!B11>=10)*AND('Paramètres - Données - Calculs'!B12<10),1,0) -> 0 | D20: =IF(C20=1,(10^(((10-'Paramètres - Données - Calculs'!B12)/('Paramètres - Données - Calculs'!B11-'Paramètres - Données - Calculs'!B12))*(LOG('Paramètres - Données - Calculs'!A11/'Paramètres - Données - Calculs'!A12))+LOG('Paramètres - Données - Calculs'!A12))),0) -> 0 | F20: =(0.00003*G20+0.0206)*('Paramètres - Données - Calculs'!$G$10-113.636)+0.31818 -> -0.6291979835 | G20: 450 | H20: ='Paramètres - Données - Calculs'!$G$15*G20+'Paramètres - Données - Calculs'!$G$16 -> 492.9605915 | I20: 529.6256552 | J20: 543.2964302 | K20: 537.0044504 | V20: Log at | AA20: =AA19+$AB$12/5 -> 175 | AC20: 281.3326344 | AF20: 281.3327165 | AG20: =AG19+$AB$12/5 -> 175 | AN20: -16
A21: =IF(('Paramètres - Données - Calculs'!B12>=60)*AND('Paramètres - Données - Calculs'!B13<60),1,0) -> 0 | B21: =IF(A21=1,(10^(((60-'Paramètres - Données - Calculs'!B13)/('Paramètres - Données - Calculs'!B12-'Paramètres - Données - Calculs'!B13))*(LOG('Paramètres - Données - Calculs'!A12/'Paramètres - Données - Calculs'!A13))+LOG('Paramètres - Données - Calculs'!A13))),0) -> 0 | C21: =IF(('Paramètres - Données - Calculs'!B12>=10)*AND('Paramètres - Données - Calculs'!B13<10),1,0) -> 0 | D21: =IF(C21=1,(10^(((10-'Paramètres - Données - Calculs'!B13)/('Paramètres - Données - Calculs'!B12-'Paramètres - Données - Calculs'!B13))*(LOG('Paramètres - Données - Calculs'!A12/'Paramètres - Données - Calculs'!A13))+LOG('Paramètres - Données - Calculs'!A13))),0) -> 0 | F21: =(0.00003*G21+0.0206)*('Paramètres - Données - Calculs'!$G$10-113.636)+0.31818 -> -0.6708715018 | G21: 500 | H21: ='Paramètres - Données - Calculs'!$G$15*G21+'Paramètres - Données - Calculs'!$G$16 -> 537.4924659 | I21: 576.5859579 | J21: 591.1621861 | K21: 584.453471 | O21: Valeurs de calculs en fonction du PG sélectionné | V21: =$S$23*($V$15-10)+$T$23*($V$15-10)^2 -> -3.048068873 | AA21: =AA20+$AB$12/5 -> 225 | AC21: 245.5099468 | AF21: 245.5099367 | AG21: =AG20+$AB$12/5 -> 225 | AN21: -15
A22: =IF(('Paramètres - Données - Calculs'!B13>=60)*AND('Paramètres - Données - Calculs'!B14<60),1,0) -> 0 | B22: =IF(A22=1,(10^(((60-'Paramètres - Données - Calculs'!B14)/('Paramètres - Données - Calculs'!B13-'Paramètres - Données - Calculs'!B14))*(LOG('Paramètres - Données - Calculs'!A13/'Paramètres - Données - Calculs'!A14))+LOG('Paramètres - Données - Calculs'!A14))),0) -> 0 | C22: =IF(('Paramètres - Données - Calculs'!B13>=10)*AND('Paramètres - Données - Calculs'!B14<10),1,0) -> 0 | D22: =IF(C22=1,(10^(((10-'Paramètres - Données - Calculs'!B14)/('Paramètres - Données - Calculs'!B13-'Paramètres - Données - Calculs'!B14))*(LOG('Paramètres - Données - Calculs'!A13/'Paramètres - Données - Calculs'!A14))+LOG('Paramètres - Données - Calculs'!A14))),0) -> 0 | F22: =(0.00003*G22+0.0206)*('Paramètres - Données - Calculs'!$G$10-113.636)+0.31818 -> -0.7125450201 | G22: 550 | H22: ='Paramètres - Données - Calculs'!$G$15*G22+'Paramètres - Données - Calculs'!$G$16 -> 582.0243403 | I22: 623.5462605 | J22: 639.0279419 | K22: 631.9024917 | O22: δ | P22: α | Q22: β | R22: γ | S22: a1 | T22: a2 | AA22: =AA32 -> 237.5 | AC22: 238.6245831 | AF22: 238.6246127 | AG22: =AA22 -> 237.5 | AN22: -14
A23: =IF(('Paramètres - Données - Calculs'!B14>=60)*AND('Paramètres - Données - Calculs'!B15<60),1,0) -> 0 | B23: =IF(A23=1,(10^(((60-'Paramètres - Données - Calculs'!B15)/('Paramètres - Données - Calculs'!B14-'Paramètres - Données - Calculs'!B15))*(LOG('Paramètres - Données - Calculs'!A14/'Paramètres - Données - Calculs'!A15))+LOG('Paramètres - Données - Calculs'!A15))),0) -> 0 | C23: =IF(('Paramètres - Données - Calculs'!B14>=10)*AND('Paramètres - Données - Calculs'!B15<10),1,0) -> 0 | D23: =IF(C23=1,(10^(((10-'Paramètres - Données - Calculs'!B15)/('Paramètres - Données - Calculs'!B14-'Paramètres - Données - Calculs'!B15))*(LOG('Paramètres - Données - Calculs'!A14/'Paramètres - Données - Calculs'!A15))+LOG('Paramètres - Données - Calculs'!A15))),0) -> 0 | F23: =(0.00003*G23+0.0206)*('Paramètres - Données - Calculs'!$G$10-113.636)+0.31818 -> -0.7542185385 | G23: 600 | H23: ='Paramètres - Données - Calculs'!$G$15*G23+'Paramètres - Données - Calculs'!$G$16 -> 626.5562146 | I23: 670.5065632 | J23: 686.8936977 | K23: 679.3515123 | O23: =IF('Paramètres - Données - Calculs'!$D$12="58-28",O15,IF('Paramètres - Données - Calculs'!$D$12="58-34",O16,IF('Paramètres - Données - Calculs'!$D$12="64-28",O17,IF('Paramètres - Données - Calculs'!$D$12="64-34",O18,IF('Paramètres - Données - Calculs'!$D$12="70-28",O19,""))))) -> 0.215 | P23: =IF('Paramètres - Données - Calculs'!$D$12="58-28",P15,IF('Paramètres - Données - Calculs'!$D$12="58-34",P16,IF('Paramètres - Données - Calculs'!$D$12="64-28",P17,IF('Paramètres - Données - Calculs'!$D$12="64-34",P18,IF('Paramètres - Données - Calculs'!$D$12="70-28",P19,""))))) -> 4.29 | Q23: =IF('Paramètres - Données - Calculs'!$D$12="58-28",Q15,IF('Paramètres - Données - Calculs'!$D$12="58-34",Q16,IF('Paramètres - Données - Calculs'!$D$12="64-28",Q17,IF('Paramètres - Données - Calculs'!$D$12="64-34",Q18,IF('Paramètres - Données - Calculs'!$D$12="70-28",Q19,""))))) -> -1.32 | R23: =IF('Paramètres - Données - Calculs'!$D$12="58-28",R15,IF('Paramètres - Données - Calculs'!$D$12="58-34",R16,IF('Paramètres - Données - Calculs'!$D$12="64-28",R17,IF('Paramètres - Données - Calculs'!$D$12="64-34",R18,IF('Paramètres - Données - Calculs'!$D$12="70-28",R19,""))))) -> -0.398 | S23: =IF('Paramètres - Données - Calculs'!$D$12="58-28",S15,IF('Paramètres - Données - Calculs'!$D$12="58-34",S16,IF('Paramètres - Données - Calculs'!$D$12="64-28",S17,IF('Paramètres - Données - Calculs'!$D$12="64-34",S18,IF('Paramètres - Données - Calculs'!$D$12="70-28",S19,""))))) -> -0.146 | T23: =IF('Paramètres - Données - Calculs'!$D$12="58-28",T15,IF('Paramètres - Données - Calculs'!$D$12="58-34",T16,IF('Paramètres - Données - Calculs'!$D$12="64-28",T17,IF('Paramètres - Données - Calculs'!$D$12="64-34",T18,IF('Paramètres - Données - Calculs'!$D$12="70-28",T19,""))))) -> 0.000795 | X23: Zeff | AB23: Contraintes | AM23: =SUM(AM16:AM22) -> 413.1743048 | AN23: -13
A24: =IF(('Paramètres - Données - Calculs'!B15>=60)*AND('Paramètres - Données - Calculs'!B16<60),1,0) -> 0 | B24: =IF(A24=1,(10^(((60-'Paramètres - Données - Calculs'!B16)/('Paramètres - Données - Calculs'!B15-'Paramètres - Données - Calculs'!B16))*(LOG('Paramètres - Données - Calculs'!A15/'Paramètres - Données - Calculs'!A16))+LOG('Paramètres - Données - Calculs'!A16))),0) -> 0 | C24: =IF(('Paramètres - Données - Calculs'!B15>=10)*AND('Paramètres - Données - Calculs'!B16<10),1,0) -> 0 | D24: =IF(C24=1,(10^(((10-'Paramètres - Données - Calculs'!B16)/('Paramètres - Données - Calculs'!B15-'Paramètres - Données - Calculs'!B16))*(LOG('Paramètres - Données - Calculs'!A15/'Paramètres - Données - Calculs'!A16))+LOG('Paramètres - Données - Calculs'!A16))),0) -> 0 | F24: =(0.00003*G24+0.0206)*('Paramètres - Données - Calculs'!$G$10-113.636)+0.31818 -> -0.7958920568 | G24: 650 | H24: ='Paramètres - Données - Calculs'!$G$15*G24+'Paramètres - Données - Calculs'!$G$16 -> 671.088089 | I24: 717.4668659 | J24: 734.7594535 | K24: 726.800533 | AB24: Statique | AE24: Cyclique | AN24: -12
A25: =IF(('Paramètres - Données - Calculs'!B16>=60)*AND('Paramètres - Données - Calculs'!B17<60),1,0) -> 0 | B25: =IF(A25=1,(10^(((60-'Paramètres - Données - Calculs'!B17)/('Paramètres - Données - Calculs'!B16-'Paramètres - Données - Calculs'!B17))*(LOG('Paramètres - Données - Calculs'!A16/'Paramètres - Données - Calculs'!A17))+LOG('Paramètres - Données - Calculs'!A17))),0) -> 0 | C25: =IF(('Paramètres - Données - Calculs'!B16>=10)*AND('Paramètres - Données - Calculs'!B17<10),1,0) -> 1 | D25: =IF(C25=1,(10^(((10-'Paramètres - Données - Calculs'!B17)/('Paramètres - Données - Calculs'!B16-'Paramètres - Données - Calculs'!B17))*(LOG('Paramètres - Données - Calculs'!A16/'Paramètres - Données - Calculs'!A17))+LOG('Paramètres - Données - Calculs'!A17))),0) -> 0.1895254888 | F25: =(0.00003*G25+0.0206)*('Paramètres - Données - Calculs'!$G$10-113.636)+0.31818 -> -0.8375655751 | G25: 700 | H25: ='Paramètres - Données - Calculs'!$G$15*G25+'Paramètres - Données - Calculs'!$G$16 -> 715.6199634 | I25: 764.4271686 | J25: 782.6252094 | K25: 774.2495536 | N25: Mod. Dyn. | O25: =10^($O$23+$P$23/(1+EXP($Q$23+$R$23*$V$19))) -> 950.9327992 | R25: Coeff. Poisson EB | S25: =0.15+0.35/(1+EXP(-1.63+0.00000384*$O$25)) -> 0.442484078 | X25: Leff | AA25: Profondeur ds F | AB25: sig1 | AC25: sig3 | AD25: Prof eq | AE25: sig1 | AF25: sig3 | AG25: Theta | AH25: Mr | AI25: Résidus | AN25: -11
A26: =IF(('Paramètres - Données - Calculs'!B17>=60)*AND('Paramètres - Données - Calculs'!B18<60),1,0) -> 0 | B26: =IF(A26=1,(10^(((60-'Paramètres - Données - Calculs'!B18)/('Paramètres - Données - Calculs'!B17-'Paramètres - Données - Calculs'!B18))*(LOG('Paramètres - Données - Calculs'!A17/'Paramètres - Données - Calculs'!A18))+LOG('Paramètres - Données - Calculs'!A18))),0) -> 0 | C26: =IF(('Paramètres - Données - Calculs'!B17>=10)*AND('Paramètres - Données - Calculs'!B18<10),1,0) -> 0 | D26: =IF(C26=1,(10^(((10-'Paramètres - Données - Calculs'!B18)/('Paramètres - Données - Calculs'!B17-'Paramètres - Données - Calculs'!B18))*(LOG('Paramètres - Données - Calculs'!A17/'Paramètres - Données - Calculs'!A18))+LOG('Paramètres - Données - Calculs'!A18))),0) -> 0 | X26: =2*('Paramètres - Données - Calculs'!$D$17+$AB$11) -> 500 | Y26: mm | AA26: =AA27/2 -> 12.5 | AB26: =24.0345*$AB$11/1000+($X$11*9.81/1000)*($AA$26/1000) -> 2.670753229 | AC26: =0.5*AB26 -> 1.335376614 | AD26: =$AB$36+AA26 -> 167.9269496 | AE26: =(1-(AD26^3/((AD26^2+'Paramètres - Données - Calculs'!$D$17^2)^1.5)))*('Paramètres - Données - Calculs'!$D$16/(PI()*('Paramètres - Données - Calculs'!$D$17/1000)^2)) -> 413.9325379 | AF26: =((1+2*$AD$11)-(2*(1+$AD$11)*AD26)/((AD26^2+'Paramètres - Données - Calculs'!$D$17^2)^0.5)+(AD26^3/((AD26^2+'Paramètres - Données - Calculs'!$D$17^2)^1.5)))*('Paramètres - Données - Calculs'!$D$16/(PI()*('Paramètres - Données - Calculs'!$D$17/1000)^2)) -> 71.56566684 | AG26: =(AB26+AE26)+2*(AC26+AF26) -> 562.405378 | AH26: =IF($A$7="Succion",('Paramètres - Données - Calculs'!$G$15*AG26+'Paramètres - Données - Calculs'!$G$16)+((-8700)*($E$39)-17000)/1000,('Paramètres - Données - Calculs'!$G$15*AG26+'Paramètres - Données - Calculs'!$G$16)+('Paramètres - Données - Calculs'!$G$17-100)*((0.00003*AG26+0.0206)*('Paramètres - Données - Calculs'!$G$10-113.636)+0.31818)) -> 643.6749524 | AI26: =(AC16-AH26)^2 -> 1.172154135e-08 | AN26: -10
A27: =IF(('Paramètres - Données - Calculs'!B18>=60)*AND('Paramètres - Données - Calculs'!B19<60),1,0) -> 0 | B27: =IF(A27=1,(10^(((60-'Paramètres - Données - Calculs'!B19)/('Paramètres - Données - Calculs'!B18-'Paramètres - Données - Calculs'!B19))*(LOG('Paramètres - Données - Calculs'!A18/'Paramètres - Données - Calculs'!A19))+LOG('Paramètres - Données - Calculs'!A19))),0) -> 0 | C27: =IF(('Paramètres - Données - Calculs'!B18>=10)*AND('Paramètres - Données - Calculs'!B19<10),1,0) -> 0 | D27: =IF(C27=1,(10^(((10-'Paramètres - Données - Calculs'!B19)/('Paramètres - Données - Calculs'!B18-'Paramètres - Données - Calculs'!B19))*(LOG('Paramètres - Données - Calculs'!A18/'Paramètres - Données - Calculs'!A19))+LOG('Paramètres - Données - Calculs'!A19))),0) -> 0 | K27: Log fr | N27: log at | P27: 1 | Q27: 10 | R27: 100 | X27: =$X$26/25.4 -> 19.68503937 | Y27: po | AA27: =$AB$12/5/2 -> 25 | AB27: =24.0345*$AB$11/1000+($X$11*9.81/1000)*($AA$27/1000) -> 2.938056458 | AC27: 1.469028229 | AD27: 180.4269496 | AE27: =(1-(AD27^3/((AD27^2+'Paramètres - Données - Calculs'!$D$17^2)^1.5)))*('Paramètres - Données - Calculs'!$D$16/(PI()*('Paramètres - Données - Calculs'!$D$17/1000)^2)) -> 385.722832 | AF27: =((1+2*$AD$11)-(2*(1+$AD$11)*AD27)/((AD27^2+'Paramètres - Données - Calculs'!$D$17^2)^0.5)+(AD27^3/((AD27^2+'Paramètres - Données - Calculs'!$D$17^2)^1.5)))*('Paramètres - Données - Calculs'!$D$16/(PI()*('Paramètres - Données - Calculs'!$D$17/1000)^2)) -> 55.51863622 | AG27: 502.6362173 | AH27: =IF($A$7="Succion",('Paramètres - Données - Calculs'!$G$15*AG27+'Paramètres - Données - Calculs'!$G$16)+((-8700)*($E$39)-17000)/1000,('Paramètres - Données - Calculs'!$G$15*AG27+'Paramètres - Données - Calculs'!$G$16)+('Paramètres - Données - Calculs'!$G$17-100)*((0.00003*AG27+0.0206)*('Paramètres - Données - Calculs'!$G$10-113.636)+0.31818)) -> 586.9551897 | AI27: 1.272532277e-08 | AN27: -9
B28: =SUM(B13:B27) -> 7.797187004 | D28: =SUM(D13:D27) -> 0.1895254888 | K28: =$N28+LOG(P$27) -> 7.112 | L28: =$N28+LOG(Q$27) -> 8.112 | M28: =$N28+LOG(R$27) -> 9.112 | N28: =$S$23*(O28-10)+$T$23*(O28-10)^2 -> 7.112 | O28: -30 | P28: =10^($O$23+$P$23/(1+EXP($Q$23+$R$23*K28))) -> 27444.66845 | Q28: =10^($O$23+$P$23/(1+EXP($Q$23+$R$23*L28))) -> 28845.46036 | R28: =10^($O$23+$P$23/(1+EXP($Q$23+$R$23*M28))) -> 29834.8012 | X28: t | AA28: =AA27+$AB$12/5 -> 75 | AB28: =24.0345*$AB$11/1000+($X$11*9.81/1000)*($AA$28/1000) -> 4.007269374 | AC28: 2.003634687 | AD28: 230.4269496 | AE28: =(1-(AD28^3/((AD28^2+'Paramètres - Données - Calculs'!$D$17^2)^1.5)))*('Paramètres - Données - Calculs'!$D$16/(PI()*('Paramètres - Données - Calculs'!$D$17/1000)^2)) -> 290.9807198 | AF28: =((1+2*$AD$11)-(2*(1+$AD$11)*AD28)/((AD28^2+'Paramètres - Données - Calculs'!$D$17^2)^0.5)+(AD28^3/((AD28^2+'Paramètres - Données - Calculs'!$D$17^2)^1.5)))*('Paramètres - Données - Calculs'!$D$16/(PI()*('Paramètres - Données - Calculs'!$D$17/1000)^2)) -> 18.27578102 | AG28: 335.5468206 | AH28: =IF($A$7="Succion",('Paramètres - Données - Calculs'!$G$15*AG28+'Paramètres - Données - Calculs'!$G$16)+((-8700)*($E$39)-17000)/1000,('Paramètres - Données - Calculs'!$G$15*AG28+'Paramètres - Données - Calculs'!$G$16)+('Paramètres - Données - Calculs'!$G$17-100)*((0.00003*AG28+0.0206)*('Paramètres - Données - Calculs'!$G$10-113.636)+0.31818)) -> 428.3906249 | AI28: 3.683728455e-09 | AN28: -8
K29: 5.0955 | L29: 6.0955 | M29: 7.0955 | N29: 5.0955 | O29: =O28+10 -> -20 | P29: 22872.29729 | Q29: 25470.76479 | R29: 27417.40918 | X29: =X27/(17.6*X17) -> 0.06000000794 | AA29: =AA28+$AB$12/5 -> 125 | AB29: =24.0345*$AB$11/1000+($X$11*9.81/1000)*($AA$29/1000) -> 5.07648229 | AC29: 2.538241145 | AD29: 280.4269496 | AE29: =(1-(AD29^3/((AD29^2+'Paramètres - Données - Calculs'!$D$17^2)^1.5)))*('Paramètres - Données - Calculs'!$D$16/(PI()*('Paramètres - Données - Calculs'!$D$17/1000)^2)) -> 222.3828071 | AF29: =((1+2*$AD$11)-(2*(1+$AD$11)*AD29)/((AD29^2+'Paramètres - Données - Calculs'!$D$17^2)^0.5)+(AD29^3/((AD29^2+'Paramètres - Données - Calculs'!$D$17^2)^1.5)))*('Paramètres - Données - Calculs'!$D$16/(PI()*('Paramètres - Données - Calculs'!$D$17/1000)^2)) -> 3.402360496 | AG29: 239.3404927 | AH29: =IF($A$7="Succion",('Paramètres - Données - Calculs'!$G$15*AG29+'Paramètres - Données - Calculs'!$G$16)+((-8700)*($E$39)-17000)/1000,('Paramètres - Données - Calculs'!$G$15*AG29+'Paramètres - Données - Calculs'!$G$16)+('Paramètres - Données - Calculs'!$G$17-100)*((0.00003*AG29+0.0206)*('Paramètres - Données - Calculs'!$G$10-113.636)+0.31818)) -> 337.0927041 | AI29: 1.171320671e-07 | AN29: -7
K30: 3.238 | L30: 4.238 | M30: 5.238 | N30: 3.238 | O30: -10 | P30: 16247.8467 | Q30: 20083.6299 | R30: 23285.43847 | AA30: =AA29+$AB$12/5 -> 175 | AB30: =24.0345*$AB$11/1000+($X$11*9.81/1000)*($AA$30/1000) -> 6.145695206 | AC30: 3.072847603 | AD30: 330.4269496 | AE30: =(1-(AD30^3/((AD30^2+'Paramètres - Données - Calculs'!$D$17^2)^1.5)))*('Paramètres - Données - Calculs'!$D$16/(PI()*('Paramètres - Données - Calculs'!$D$17/1000)^2)) -> 173.3143904 | AF30: =((1+2*$AD$11)-(2*(1+$AD$11)*AD30)/((AD30^2+'Paramètres - Données - Calculs'!$D$17^2)^0.5)+(AD30^3/((AD30^2+'Paramètres - Données - Calculs'!$D$17^2)^1.5)))*('Paramètres - Données - Calculs'!$D$16/(PI()*('Paramètres - Données - Calculs'!$D$17/1000)^2)) -> -2.511536853 | AG30: 180.5827071 | AH30: =IF($A$7="Succion",('Paramètres - Données - Calculs'!$G$15*AG30+'Paramètres - Données - Calculs'!$G$16)+((-8700)*($E$39)-17000)/1000,('Paramètres - Données - Calculs'!$G$15*AG30+'Paramètres - Données - Calculs'!$G$16)+('Paramètres - Données - Calculs'!$G$17-100)*((0.00003*AG30+0.0206)*('Paramètres - Données - Calculs'!$G$10-113.636)+0.31818)) -> 281.3327165 | AI30: 6.740175071e-09 | AN30: -6
K31: 1.5395 | L31: 2.5395 | M31: 3.5395 | N31: 1.5395 | O31: 0 | P31: 9173.408513 | Q31: 13330.95623 | R31: 17459.19479 | U31: Tair (°C) | V31: ='Paramètres - Données - Calculs'!$D$13 -> 26 | W31: Épaisseur (mm) | X31: ='Paramètres - Données - Calculs'!$D$14 -> 100 | AA31: =AA30+$AB$12/5 -> 225 | AB31: =24.0345*$AB$11/1000+($X$11*9.81/1000)*($AA$31/1000) -> 7.214908122 | AC31: 3.607454061 | AD31: 380.4269496 | AE31: =(1-(AD31^3/((AD31^2+'Paramètres - Données - Calculs'!$D$17^2)^1.5)))*('Paramètres - Données - Calculs'!$D$16/(PI()*('Paramètres - Données - Calculs'!$D$17/1000)^2)) -> 137.8458453 | AF31: =((1+2*$AD$11)-(2*(1+$AD$11)*AD31)/((AD31^2+'Paramètres - Données - Calculs'!$D$17^2)^0.5)+(AD31^3/((AD31^2+'Paramètres - Données - Calculs'!$D$17^2)^1.5)))*('Paramètres - Données - Calculs'!$D$16/(PI()*('Paramètres - Données - Calculs'!$D$17/1000)^2)) -> -4.720828748 | AG31: 142.834004 | AH31: =IF($A$7="Succion",('Paramètres - Données - Calculs'!$G$15*AG31+'Paramètres - Données - Calculs'!$G$16)+((-8700)*($E$39)-17000)/1000,('Paramètres - Données - Calculs'!$G$15*AG31+'Paramètres - Données - Calculs'!$G$16)+('Paramètres - Données - Calculs'!$G$17-100)*((0.00003*AG31+0.0206)*('Paramètres - Données - Calculs'!$G$10-113.636)+0.31818)) -> 245.5099367 | AI31: 1.014028937e-10 | AN31: -5
F32: =$I$11 -> 41.72730271 | K32: 0 | L32: 1 | M32: 2 | N32: 0 | O32: 10 | P32: 3986.47937 | Q32: 7118.144173 | R32: 11056.16405 | U32: (°F) | V32: =9*V31/5+32 -> 78.8 | W32: (in) | X32: =X31/25.4 -> 3.937007874 | AA32: =AA31+$AB$12/5/4 -> 237.5 | AB32: =24.0345*$AB$11/1000+($X$11*9.81/1000)*($AA$32/1000) -> 7.482211351 | AC32: 3.741105675 | AD32: 392.9269496 | AE32: =(1-(AD32^3/((AD32^2+'Paramètres - Données - Calculs'!$D$17^2)^1.5)))*('Paramètres - Données - Calculs'!$D$16/(PI()*('Paramètres - Données - Calculs'!$D$17/1000)^2)) -> 130.5725125 | AF32: =((1+2*$AD$11)-(2*(1+$AD$11)*AD32)/((AD32^2+'Paramètres - Données - Calculs'!$D$17^2)^0.5)+(AD32^3/((AD32^2+'Paramètres - Données - Calculs'!$D$17^2)^1.5)))*('Paramètres - Données - Calculs'!$D$16/(PI()*('Paramètres - Données - Calculs'!$D$17/1000)^2)) -> -4.97921381 | AG32: 135.5785076 | AH32: =IF($A$7="Succion",('Paramètres - Données - Calculs'!$G$15*AG32+'Paramètres - Données - Calculs'!$G$16)+((-8700)*($E$39)-17000)/1000,('Paramètres - Données - Calculs'!$G$15*AG32+'Paramètres - Données - Calculs'!$G$16)+('Paramètres - Données - Calculs'!$G$17-100)*((0.00003*AG32+0.0206)*('Paramètres - Données - Calculs'!$G$10-113.636)+0.31818)) -> 238.6246127 | AI32: 8.782264887e-10 | AN32: -4
F33: =ROUND(K11,0) -> 30 | K33: -1.3805 | L33: -0.3805 | M33: 0.6195 | N33: -1.3805 | O33: 20 | P33: 1405.481702 | Q33: 3074.509506 | R33: 5808.795764 | AH33: RMSE | AI33: =(SUM(AI26:AI32)/COUNT(AI26:AI32))^0.5 -> 0.0001478331415 | AN33: -3
K34: -2.602 | L34: -1.602 | M34: -0.602 | N34: -2.602 | O34: 30 | P34: 460.2393894 | Q34: 1160.753216 | R34: 2616.900079 | AN34: -2
K35: -3.6645 | L35: -2.6645 | M35: -1.6645 | N35: -3.6645 | O35: 40 | P35: 162.8271028 | Q35: 433.3042721 | R35: 1098.613306 | AA35: f | AB35: =IF('Paramètres - Données - Calculs'!$D$17>$AB$11,1.1,1) -> 1.1 | AN35: -1
A36: Valeur succion | C36: Sr (%) | D36: 20 | E36: =$C$123 -> -15.85045022 | F36: kPa | K36: -4.568 | L36: -3.568 | M36: -2.568 | N36: -4.568 | O36: 50 | P36: 68.64386691 | Q36: 178.9661177 | R36: 475.5470528 | X36: Formule Brown 1973 | AA36: Heq EB en F | AB36: =$AB$35*$AB$11*(($AC$11/$AC$12)*((1-$AD$12^2)/(1-$AD$11^2)))^0.333333333333333 -> 155.4269496 | AD36: a2+z2 0,5 | AE36: =($AB$36^2+'Paramètres - Données - Calculs'!$D$17^2)^0.5 -> 216.003557 | AN36: 0
C37: Sr (%) | D37: 100 | E37: =$C$43 -> -1.954 | F37: kPa | X37: =1/(10^(0.5*0.33333*$AB$11/1000-0.2-0.94*LOG($X$15))) -> 37.31019161 | AD37: a2+z2 1,5 | AE37: =($AB$36^2+'Paramètres - Données - Calculs'!$D$17^2)^1.5 -> 10078193.88 | AN37: 1
C38: Sropt(%) | D38: =ROUND($F$32,0) -> 42 | E38: =SUM(G43:G142) -> -4.289963545 | F38: kPa | AD38: z3 | AE38: =AB36^3 -> 3754732.23 | AN38: 2
C39: Sreval(%) | D39: =$F$33 -> 30 | E39: =SUM(H43:H142) -> -9.21364101 | F39: kPa | AA39: eps bas rev | AB39: =((1+$AD$12)*(PI()*('Paramètres - Données - Calculs'!$D$17/1000/2)^2)/(2*$AC$12))*((1-2*$AD$12)-(2*$AB$36*(1-$AD$12))/(('Paramètres - Données - Calculs'!$D$17^2+$AB$36^2)^0.5)+($AB$36^3)/(($AB$36^2+'Paramètres - Données - Calculs'!$D$17^2)^1.5)) -> -9.301634319e-06 | AD39: 2(1-u)z | AE39: =2*(1-$AD$12)*$AB$36 -> 202.0550344 | AN39: 3
O40: -50 | P40: -17.78 | R40: 0.15 | AB40: =-1*AB39*1000000 -> 9.301634319 | AD40: (1-2u) | AE40: =(1-2*$AD$12) -> 0.3 | AN40: 4
A41: Modèle Doucet Doré | O41: -17.78 | P41: 4.44 | R41: 0.2 | AN41: 5
A42: Saturation | C42: Succion | O42: 4.44 | P42: 21.11 | R42: 0.25 | AE42: =AE40-$AE$39/$AE$36+$AE$38/$AE$37 -> -0.2628645382 | AN42: 6
A43: 100 | B43: =57.483*EXP((-(C43))/(-21.879))+38.353*EXP((-(C43))/(-1.596))-7.858 -> 55.98805763 | C43: -1.954 | E43: =(A43-B43)^2 -> 1937.051071 | G43: =IF($D$38=A43,C43,"") ->  | H43: =IF($D$39=A43,C43,"") ->  | O43: 21.11 | P43: 37.78 | R43: 0.35 | AE43: =((1+$AD$12)*(('Paramètres - Données - Calculs'!$D$16/(PI()*('Paramètres - Données - Calculs'!$D$17/1000)^2))/1000)/(2*$AC$12)) -> 0.001416421383 | AN43: 7
A44: =A43-1 -> 99 | B44: 55.98805763 | C44: -1.954 | E44: 1850.027187 | O44: 37.78 | P44: 54.44 | R44: 0.45 | AA44: (E/E')^b | AB44: =($AC$11/3000)^(-0.85) -> 2.655374091 | AD44: eps tension | AE44: =1000000*AE43*AE42 -> -372.3269527 | AN44: 8
A45: 98 | B45: 55.98805763 | C45: -1.954 | E45: 1765.003302 | O45: 54.44 | P45: 70 | R45: 0.48 | AN45: 9
A46: 97 | B46: 55.98805763 | C46: -1.954 | E46: 1681.979417 | AA46: =(-1)*$AE$44/240 -> 1.551362303 | AN46: 10
A47: 96 | B47: 55.98805763 | C47: -1.954 | E47: 1600.955532 | O47: =IF(($V$15>O40)*AND($V$15<P40),R40,IF(($V$15>O41)*AND($V$15<P41),R41,IF(($V$15>O42)*AND($V$15<P42),R42,IF(($V$15>O43)*AND($V$15<P43),R43,IF(($V$15>O44)*AND($V$15<P44),R44,IF(($V$15>O45)*AND($V$15<P45),R45,0.48)))))) -> 0.35 | AA47: =AA46/AB44 -> 0.5842349325 | AN47: 11
A48: 95 | B48: 55.98805763 | C48: -1.954 | E48: 1521.931648 | AA48: =LOG(AA47) -> -0.2334124793 | AN48: 12
A49: 94 | B49: 55.98805763 | C49: -1.954 | E49: 1444.907763 | AA49: =AA48/(-1/3.29) -> 0.7679270568 | AN49: 13
A50: 93 | B50: 55.98805763 | C50: -1.954 | E50: 1369.883878 | AA50: =10^AA49 -> 5.860397262 | AN50: 14
A51: 92 | B51: 55.98805763 | C51: -1.954 | E51: 1296.859993 | AA51: =AA50*1000000 -> 5860397.262 | AN51: 15
A52: 91 | B52: 55.98805763 | C52: -1.954 | E52: 1225.836109 | AN52: 16
A53: 90 | B53: 55.98805763 | C53: -1.954 | E53: 1156.812224 | AN53: 17
A54: 89 | B54: 55.98805763 | C54: -1.954 | E54: 1089.788339 | AN54: 18
A55: 88 | B55: 55.98805763 | C55: -1.954 | E55: 1024.764455 | AN55: 19
A56: 87 | B56: 55.98805763 | C56: -1.954 | E56: 961.7405698 | AN56: 20
A57: 86 | B57: 55.98805763 | C57: -1.954 | E57: 900.716685 | AN57: 21
A58: 85 | B58: 55.98805763 | C58: -1.954 | E58: 841.6928003 | AN58: 22
A59: 84 | B59: 55.98805763 | C59: -1.954 | E59: 784.6689155 | AN59: 23
A60: 83 | B60: 55.98805763 | C60: -1.954 | E60: 729.6450308 | AN60: =AN59+1 -> 24
A61: 82 | B61: 55.98805763 | C61: -1.954 | E61: 676.621146 | AN61: 25
A62: 81 | B62: 55.98805763 | C62: -1.954 | E62: 625.5972613 | AN62: 26
A63: 80 | B63: 55.98805763 | C63: -1.954 | E63: 576.5733765 | AN63: 27
A64: 79 | B64: 55.98805763 | C64: -1.954 | E64: 529.5494918 | AN64: 28
A65: 78 | B65: 55.98805763 | C65: -1.954 | E65: 484.525607 | AN65: 29
A66: 77 | B66: 55.98805763 | C66: -1.954 | E66: 441.5017223 | AN66: 30
A67: 76 | B67: 55.98805763 | C67: -1.954 | E67: 400.4778376 | AN67: =AN66+1 -> 31
A68: 75 | B68: 55.98805763 | C68: -1.954 | E68: 361.4539528 | AN68: 32
A69: 74 | B69: 55.98805763 | C69: -1.954 | E69: 324.4300681 | AN69: =AN68+1 -> 33
A70: 73 | B70: 55.98805763 | C70: -1.954 | E70: 289.4061833 | AN70: =AN69+1 -> 34
A71: 72 | B71: 55.98805763 | C71: -1.954 | E71: 256.3822986 | AN71: 35
A72: 71 | B72: 55.98805763 | C72: -1.954 | E72: 225.3584138
A73: 70 | B73: 55.98805763 | C73: -1.954 | E73: 196.3345291
A74: 69 | B74: 55.98805763 | C74: -1.954 | E74: 169.3106443
A75: 68 | B75: =57.483*EXP((-(C75))/(-21.879))+38.353*EXP((-(C75))/(-1.596))-7.858 -> 55.98805763 | C75: -1.954 | E75: =(A75-B75)^2 -> 144.2867596 | G75: =IF($D$38=A75,C75,"") ->  | H75: =IF($D$39=A75,C75,"") -> 
A76: =A75-1 -> 67 | B76: 55.98805763 | C76: -1.954 | E76: 121.2628748
A77: 66 | B77: 55.98805763 | C77: -1.954 | E77: 100.2389901
A78: 65 | B78: 55.98805763 | C78: -1.954 | E78: 81.21510534
A79: 64 | B79: 55.98805763 | C79: -1.954 | E79: 64.19122059
A80: 63 | B80: 55.98805763 | C80: -1.954 | E80: 49.16733585
A81: 62 | B81: 55.98805763 | C81: -1.954 | E81: 36.1434511
A82: 61 | B82: 55.98805763 | C82: -1.954 | E82: 25.11956635
A83: 60 | B83: 55.98805763 | C83: -1.954 | E83: 16.09568161
A84: 59 | B84: 55.98805763 | C84: -1.954 | E84: 9.07179686
A85: 58 | B85: 55.98805763 | C85: -1.954 | E85: 4.047912113
A86: 57 | B86: 55.98805763 | C86: -1.954 | E86: 1.024027367
A87: 56 | B87: 56.00727282 | C87: -1.951971265 | E87: 5.289391811e-05
A88: 55 | B88: 54.98464261 | C88: -2.062763889 | E88: 0.0002358493152
A89: 54 | B89: 53.98857189 | C89: -2.176552574 | E89: 0.0001306017387
A90: 53 | B90: 52.99046569 | C90: -2.296942918 | E90: 9.090309598e-05
A91: 52 | B91: 51.99727394 | C91: -2.423683302 | E91: 7.431419712e-06
A92: 51 | B92: 50.98794732 | C92: -2.560287311 | E92: 0.0001452670207
A93: 50 | B93: 49.99289387 | C93: -2.703447723 | E93: 5.049702664e-05
A94: 49 | B94: 48.99812559 | C94: -2.855869361 | E94: 3.513418172e-06
A95: 48 | B95: 48.00553365 | C95: -3.018204357 | E95: 3.062127991e-05
A96: 47 | B96: 46.99121137 | C96: -3.195801455 | E96: 7.724009897e-05
A97: 46 | B97: 45.99990716 | C97: -3.382033531 | E97: 8.619462413e-09
A98: 45 | B98: 45.01300376 | C98: -3.581204614 | E98: 0.0001690976534
A99: 44 | B99: 44.01514609 | C99: -3.798012364 | E99: 0.0002294041497
A100: 43 | B100: 43.02832245 | C100: -4.02922335 | E100: 0.0008021609001
A101: 42 | B101: 41.99888994 | C101: -4.289963545 | E101: 1.232242877e-06 | G101: -4.289963545
A102: 41 | B102: 41.04039004 | C102: -4.552283129 | E102: 0.001631355569
A103: 40 | B103: 39.97632402 | C103: -4.867374447 | E103: 0.0005605520137
A104: 39 | B104: 39.03587918 | C104: -5.168181352 | E104: 0.001287315902
A105: 38 | B105: 37.99069998 | C105: -5.528393239 | E105: 8.649028355e-05
A106: 37 | B106: 36.98808754 | C106: -5.900490195 | E106: 0.0001419067618
A107: 36 | B107: =57.483*EXP((-(C107))/(-21.879))+38.353*EXP((-(C107))/(-1.596))-7.858 -> 35.99345589 | C107: -6.295802556 | E107: =(A107-B107)^2 -> 4.282533406e-05 | G107: =IF($D$38=A107,C107,"") ->  | H107: =IF($D$39=A107,C107,"") -> 
A108: =A107-1 -> 35 | B108: 34.97127259 | C108: -6.729246184 | E108: 0.0008252640552
A109: 34 | B109: 33.99676584 | C109: -7.167728691 | E109: 1.045977715e-05
A110: 33 | B110: 33.02682933 | C110: -7.627940557 | E110: 0.0007198127699
A111: 32 | B111: 32.02640262 | C111: -8.126564842 | E111: 0.0006970985535
A112: 31 | B112: 31.00418599 | C112: -8.660132081 | E112: 1.752252274e-05
A113: 30 | B113: 29.98811832 | C113: -9.21364101 | E113: 0.0001411742284 | H113: -9.21364101
A114: 29 | B114: 28.98823511 | C114: -9.780104933 | E114: 0.0001384127085
A115: 28 | B115: 27.99914327 | C115: -10.36121155 | E115: 7.339820687e-07
A116: 27 | B116: 27.01050733 | C116: -10.96246377 | E116: 0.0001104039028
A117: 26 | B117: 26.01407412 | C117: -11.58916817 | E117: 0.0001980808551
A118: 25 | B118: 25.0071156 | C118: -12.24395349 | E118: 5.063177247e-05
A119: 24 | B119: 23.99304598 | C119: -12.92578534 | E119: 4.835843073e-05
A120: 23 | B120: 22.97957063 | C120: -13.63058482 | E120: 0.0004173591501
A121: 22 | B121: 21.97483302 | C121: -14.35348608 | E121: 0.0006333768117
A122: 21 | B122: 20.98271492 | C122: -15.09224671 | E122: 0.0002987739821
A123: 20 | B123: 19.99934491 | C123: -15.85045022 | E123: 4.291479255e-07
A124: 19 | B124: 19.01351736 | C124: -16.63820776 | E124: 0.0001827190637
A125: 18 | B125: 18.01279127 | C125: -17.46821176 | E125: 0.0001636166613
A126: 17 | B126: 16.99317729 | C126: -18.34772547 | E126: 4.654938486e-05
A127: 16 | B127: 15.96551783 | C127: -19.27157438 | E127: 0.001189019725
A128: 15 | B128: 14.95134678 | C128: -20.22328772 | E128: 0.002367135688
A129: 14 | B129: 13.96740718 | C129: -21.18800667 | E129: 0.001062291909
A130: 13 | B130: 13.00775336 | C130: -22.17177897 | E130: 6.011460885e-05
A131: 12 | B131: 12.03996774 | C131: -23.21083118 | E131: 0.001597420073
A132: 11 | B132: 11.03019011 | C132: -24.35029578 | E132: 0.0009114429177
A133: 10 | B133: 9.985671027 | C133: -25.59494257 | E133: 0.0002053194598
A134: 9 | B134: 8.956838655 | C134: -26.89427092 | E134: 0.001862901693
A135: 8 | B135: 7.974235776 | C135: -28.21168407 | E135: 0.0006637952231
A136: 7 | B136: 7.010639183 | C136: -29.58555028 | E136: 0.0001131922178
A137: 6 | B137: 6.018835491 | C137: -31.09592964 | E137: 0.0003547757376
A138: 5 | B138: 4.986830081 | C138: -32.78672848 | E138: 0.0001734467564
A139: 4 | B139: =57.483*EXP((-(C139))/(-21.879))+38.353*EXP((-(C139))/(-1.596))-7.858 -> 3.962561439 | C139: -34.60489285 | E139: 0.001401645845
A140: 3 | B140: 3.005796038 | C140: -36.45158356 | E140: 3.35940529e-05
A141: 2 | B141: 2.040822649 | C141: -38.4867675 | E141: 0.001666488638
A142: 1 | B142: 0.9624066864 | C142: -41.01046304 | E142: 0.001413257225
E144: =(SUM(E43:E142)/COUNT(E43:E142))^0.5 -> 17.14458449
